bitfinex-derivatives/quotes_SOLF0:USTF0_20230701
["timestamp","ask_amount","ask_price","bid_price","bid_amount"]
[1688200724541,108.51,18.397,18.386,108.51]
[1688200725344,0.51640883,18.393,18.39,0.84252125]
[1688200730641,8.82075627,18.398,18.392,108.51]
[1688200730839,200.0,18.401,18.392,108.51]
[1688200731433,8.82221958,18.4,18.392,108.51]
[1688200731631,200.0,18.401,18.392,108.51]
[1688200731832,109.35,18.403,18.394,0.76598313]
[1688200732030,116.76818963,18.402,18.394,0.76598313]
[1688200732230,8.25818963,18.401,18.396,0.87704233]
[1688200732446,208.25818963,18.401,18.396,0.87704233]
[1688200732637,8.25818963,18.4,18.396,0.87704233]
[1688200739541,8.25818963,18.4,18.387,26.58446757]
[1688200739739,8.25818963,18.4,18.385,108.51]
[1688200739932,108.51,18.396,18.385,108.51]
[1688200740535,8.2365833,18.395,18.385,108.51]
[1688200740742,107.56,18.399,18.389,0.89135331]
[1688200740936,107.56,18.404,18.393,108.51]
[1688200741138,634.04,18.411,18.403,108.07]
[1688200741139,200.0,18.411,18.403,108.07]
[1688200741343,8.24192584,18.41,18.403,108.07]
[1688200741552,3.31192584,18.41,18.403,108.07]
[1688200741739,0.13574684,18.409,18.405,0.85458732]
[1688200743649,0.13574684,18.409,18.406,107.72]
[1688200743847,0.13574684,18.409,18.405,0.85458732]
[1688200756658,7.98640178,18.409,18.405,0.85458732]
[1688200756856,0.13574684,18.409,18.405,0.85458732]
[1688200758659,0.13574684,18.409,18.405,109.36458732]
[1688200759067,7.73249637,18.409,18.405,109.36458732]
[1688200759256,0.13574684,18.409,18.405,109.36458732]
[1688200763564,0.13574684,18.409,18.408,144.91367954]
[1688200765863,0.13574684,18.409,18.408,107.48]
[1688200766058,0.13574684,18.409,18.408,144.91367954]
[1688200767061,162.56632046,18.422,18.41,434.04]
[1688200767267,7.59158924,18.421,18.41,434.04]
[1688200767962,7.59158924,18.421,18.411,54.0729]
[1688200768153,7.59158924,18.421,18.414,0.76880269]
[1688200769759,7.59158924,18.421,18.415,108.51]
[1688200772162,7.59158924,18.421,18.414,0.76880269]
[1688200773368,7.59158924,18.42,18.414,0.76880269]
[1688200773666,7.59158924,18.419,18.414,0.76880269]
[1688200773867,7.59158924,18.418,18.414,0.76880269]
[1688200774067,162.56632046,18.422,18.414,0.76880269]
[1688200774273,7.59095573,18.421,18.414,0.76880269]
[1688200774862,162.56632046,18.412,18.399,37.43367954]
[1688200775161,162.56632046,18.412,18.402,108.51]
[1688200775866,0.76523013,18.409,18.402,108.51]
[1688200777065,0.76523013,18.409,18.404,0.87151307]
[1688200803696,109.27523013,18.409,18.399,37.43367954]
[1688200804497,54.3248,18.408,18.399,37.43367954]
[1688200804695,54.3248,18.408,18.402,0.82567578]
[1688200804997,54.3248,18.408,18.399,37.43367954]
[1688200806095,162.56632046,18.403,18.395,108.51]
[1688200806300,108.51,18.401,18.39,145.94367954]
[1688200806890,108.51,18.401,18.394,0.80723819]
[1688200807095,0.75980799,18.397,18.393,107.48]
[1688200808101,0.75980799,18.397,18.393,107.99008748]
[1688200810295,108.51,18.409,18.4,37.43367954]
[1688200810490,167.286,18.409,18.4,37.43367954]
[1688200810890,58.776,18.409,18.401,108.51]
[1688200811296,0.876094,18.407,18.403,0.74774614]
[1688200815007,108.51,18.418,18.406,108.51]
[1688200815211,7.57930705,18.417,18.406,108.51]
[1688200815410,162.56632046,18.423,18.412,108.07]
[1688200815706,162.56632046,18.423,18.416,107.48]
[1688200815904,57.3494,18.425,18.416,107.48]
[1688200816204,108.51,18.432,18.421,108.51]
[1688200816409,162.56632046,18.423,18.421,108.51]
[1688200816614,162.56632046,18.423,18.415,107.72]
[1688200816903,162.56632046,18.423,18.418,108.51]
[1688200817112,162.56632046,18.423,18.414,108.51]
[1688200817298,0.82487225,18.42,18.417,0.81604268]
[1688200818411,0.82487225,18.42,18.41,434.04]
[1688200818412,0.82487225,18.42,18.412,107.48]
[1688200819503,0.82487225,18.42,18.414,0.85204694]
[1688200833634,0.82487225,18.42,18.414,119.71204694]
[1688200836417,0.82487225,18.42,18.417,118.95]
[1688200837821,0.82487225,18.42,18.419,37.43367954]
[1688200838021,118.95,18.431,18.419,156.38367954]
[1688200838814,118.95,18.429,18.419,37.43367954]
[1688200839013,0.85094623,18.426,18.422,0.83262341]
[1688200842421,119.80094623,18.426,18.414,118.95]
[1688200842622,118.95,18.426,18.414,118.95]
[1688200842821,162.56632046,18.424,18.414,118.95]
[1688200843519,0.82363604,18.421,18.417,0.80567708]
[1688200847529,0.82363604,18.421,18.411,214.87407954]
[1688200848033,0.82363604,18.421,18.413,118.86]
[1688200848526,0.82363604,18.421,18.415,0.78764629]
[1688200864946,118.95,18.42,18.411,37.43367954]
[1688200865844,118.95,18.42,18.414,0.46410934]
[1688200866653,0.82363604,18.421,18.414,0.46410934]
[1688200873359,0.82363604,18.421,18.416,118.23]
[1688200881063,0.82363604,18.421,18.416,107.13]
[1688200881867,0.82363604,18.421,18.415,107.13]
[1688200883657,108.1,18.432,18.42,145.03367954]
[1688200884664,0.76031043,18.428,18.424,0.77091361]
[1688200890576,0.76031043,18.428,18.425,107.24]
[1688200891263,0.76031043,18.428,18.424,0.77091361]
[1688200897067,0.76031043,18.428,18.424,107.90091361]
[1688200901273,108.1,18.437,18.427,107.6]
[1688200901469,167.5085,18.44,18.431,37.43367954]
[1688200902173,167.5085,18.44,18.426,432.4]
[1688200902174,108.1,18.438,18.421,37.43367954]
[1688200902469,108.1,18.438,18.428,0.81872954]
[1688200902970,0.81586326,18.435,18.431,37.43367954]
[1688200903175,0.81586326,18.435,18.431,38.23830563]
[1688200904177,163.38218372,18.435,18.431,0.80462609]
[1688200904381,270.64218372,18.435,18.424,107.66]
[1688200904584,269.82632046,18.435,18.424,107.66]
[1688200905074,65.85222972,18.434,18.424,107.66]
[1688200905269,58.2947,18.434,18.424,107.66]
[1688200905469,0.8494368,18.431,18.427,0.79273184]
[1688200914784,0.8494368,18.431,18.422,107.44]
[1688200915789,0.8494368,18.431,18.425,0.44907706]
[1688200917590,0.8494368,18.431,18.422,107.44]
[1688200918896,108.1,18.429,18.421,37.43367954]
[1688200919089,0.84614544,18.427,18.421,37.43367954]
[1688200921094,108.1,18.423,18.412,107.6]
[1688200921292,0.74569764,18.419,18.412,107.6]
[1688200922296,0.74569764,18.419,18.412,145.03367954]
[1688200923099,0.74569764,18.419,18.415,107.13]
[1688200924983,0.74569764,18.419,18.412,144.56367954]
[1688200931501,0.74569764,18.419,18.412,107.13]
[1688200932001,0.74569764,18.419,18.412,144.56367954]
[1688200935106,0.74569764,18.419,18.41,107.44]
[1688200935308,162.56632046,18.415,18.406,108.04]
[1688200936013,269.82632046,18.415,18.404,162.4883]
[1688200936218,0.76361416,18.411,18.402,37.43367954]
[1688200937310,0.76361416,18.411,18.404,107.24]
[1688200939513,0.76361416,18.411,18.406,107.13]
[1688200939819,0.76361416,18.411,18.409,107.6]
[1688200941916,0.76361416,18.411,18.407,107.24]
[1688200942921,0.76361416,18.411,18.404,107.13]
[1688200943124,0.76361416,18.411,18.403,56.3705]
[1688200943621,0.76361416,18.411,18.402,145.47367954]
[1688200944621,108.1,18.409,18.402,37.43367954]
[1688200944817,0.76361416,18.411,18.402,37.43367954]
[1688200947635,0.76361416,18.411,18.403,54.5403]
[1688200948941,0.76361416,18.411,18.404,107.24]
[1688200949236,0.76361416,18.411,18.407,107.13]
[1688200950034,108.1,18.421,18.403,486.9403]
[1688200950336,108.1,18.424,18.413,107.24]
[1688200951130,0.82436922,18.42,18.417,0.76479275]
[1688200955534,162.56632046,18.416,18.403,54.5403]
[1688200955736,27.29359702,18.425,18.412,37.43367954]
[1688200955941,108.1,18.421,18.412,37.43367954]
[1688200956640,0.81079022,18.418,18.412,37.43367954]
[1688200960043,0.81079022,18.418,18.412,144.56367954]
[1688200960530,0.81079022,18.418,18.412,37.43367954]
[1688200962943,0.81079022,18.418,18.41,107.66]
[1688200963144,162.56632046,18.416,18.407,108.04]
[1688200963351,0.82625882,18.413,18.404,107.13]
[1688200965046,107.26,18.422,18.412,37.43367954]
[1688200966043,107.26,18.422,18.415,0.82647992]
[1688200966239,108.84205929,18.419,18.415,0.82647992]
[1688200969642,0.74205929,18.419,18.415,0.82647992]
[1688200978159,162.56632046,18.426,18.417,107.6]
[1688200979253,0.74015819,18.423,18.42,0.79822539]
[1688200982556,108.1,18.432,18.422,37.43367954]
[1688200983555,0.75917182,18.429,18.422,37.43367954]
[1688200983755,0.75917182,18.429,18.425,0.87617037]
[1688200987150,108.85917182,18.429,18.425,0.87617037]
[1688200989061,0.75917182,18.429,18.425,0.87617037]
[1688200991260,162.56632046,18.426,18.419,107.44]
[1688200991463,162.56632046,18.426,18.416,107.24]
[1688200991663,108.1,18.427,18.416,107.24]
[1688200992263,0.78412275,18.423,18.42,0.81867661]
[1688200994456,0.78412275,18.423,18.414,162.3098]
[1688200995469,0.78412275,18.423,18.417,0.61362932]
[1688200997066,108.04412275,18.423,18.417,0.61362932]
[1688201013081,108.1,18.421,18.413,37.43367954]
[1688201013977,0.8526351,18.419,18.413,37.43367954]
[1688201015983,0.8526351,18.419,18.409,107.66]
[1688201016177,108.1,18.415,18.403,145.09367954]
[1688201016489,0.76443202,18.411,18.403,145.09367954]
[1688201018786,0.76443202,18.411,18.403,37.43367954]
[1688201018989,108.1,18.41,18.403,37.43367954]
[1688201020182,108.1,18.41,18.398,107.66]
[1688201020388,0.82025732,18.406,18.403,37.43367954]
[1688201023891,0.82025732,18.406,18.399,107.24]
[1688201025400,0.82025732,18.406,18.403,37.43367954]
[1688201025691,0.82025732,18.406,18.399,107.24]
[1688201025893,0.82025732,18.406,18.403,37.43367954]
[1688201029899,0.82025732,18.406,18.402,108.04]
[1688201030997,0.82025732,18.406,18.403,37.43367954]
[1688201039005,0.82025732,18.406,18.402,108.04]
[1688201040708,0.82025732,18.406,18.403,37.43367954]
[1688201045813,98.02025732,18.406,18.403,37.43367954]
[1688201046515,0.82025732,18.406,18.403,134.83367954]
[1688201048522,0.82025732,18.406,18.405,97.4]
[1688201048710,97.2,18.412,18.405,97.4]
[1688201049715,0.78290721,18.41,18.405,97.4]
[1688201050413,97.2,18.415,18.409,134.83367954]
[1688201051315,0.84102024,18.414,18.409,134.83367954]
[1688201051615,0.84102024,18.414,18.412,96.79]
[1688201053420,97.02,18.421,18.413,96.79]
[1688201053619,97.02,18.421,18.415,96.79]
[1688201054319,0.84645126,18.42,18.416,0.87233178]
[1688201065222,0.84645126,18.42,18.417,107.33]
[1688201065521,54.2978,18.426,18.417,107.33]
[1688201065827,107.74,18.427,18.417,107.33]
[1688201066515,0.83594021,18.424,18.42,0.80820381]
[1688201067827,0.83594021,18.424,18.423,37.43367954]
[1688201069815,0.83594021,18.424,18.42,0.80820381]
[1688201072516,0.83594021,18.424,18.423,37.43367954]
[1688201073427,0.83594021,18.424,18.42,0.80820381]
[1688201074427,0.83594021,18.424,18.423,37.43367954]
[1688201074736,0.83594021,18.424,18.42,0.80820381]
[1688201076832,0.83594021,18.424,18.423,37.43367954]
[1688201080739,0.83594021,18.424,18.423,34.14304351]
[1688201081745,108.96594021,18.424,18.42,0.80820381]
[1688201091640,107.52,18.421,18.42,0.80820381]
[1688201102858,135.77789784,18.423,18.42,0.80820381]
[1688201103262,108.13,18.423,18.42,0.80820381]
[1688201104459,0.83594021,18.424,18.42,0.80820381]
[1688201115872,96.41,18.423,18.42,0.80820381]
[1688201119763,0.83594021,18.424,18.422,131.45304351]
[1688201121962,0.83594021,18.424,18.423,96.95]
[1688201123164,263.16695649,18.437,18.423,96.95]
[1688201123373,263.16695649,18.437,18.431,97.31]
[1688201123374,7.56016033,18.436,18.431,97.31]
[1688201124066,0.75801876,18.435,18.432,0.79430491]
[1688201124266,7.56016033,18.434,18.432,0.79430491]
[1688201124468,0.75801876,18.435,18.433,131.09304351]
[1688201125974,0.75801876,18.435,18.433,96.95]
[1688201126480,0.75801876,18.435,18.434,34.14304351]
[1688201126774,96.41,18.443,18.434,131.09304351]
[1688201126972,7.56284518,18.442,18.436,96.95]
[1688201127770,0.54171069,18.441,18.437,0.89264442]
[1688201129877,0.54171069,18.441,18.439,97.31]
[1688201130974,0.54171069,18.441,18.437,0.89264442]
[1688201131882,7.56796973,18.446,18.439,107.86]
[1688201132071,7.56796973,18.445,18.439,107.86]
[1688201132273,107.86,18.453,18.444,34.14304351]
[1688201132576,7.57034984,18.452,18.444,34.14304351]
[1688201133079,7.57034984,18.452,18.446,0.87187983]
[1688201134984,165.1129,18.455,18.446,0.87187983]
[1688201135184,7.57031734,18.454,18.446,0.87187983]
[1688201135382,272.65695649,18.448,18.437,107.86]
[1688201135584,7.57031734,18.447,18.437,107.86]
[1688201136378,0.832374,18.444,18.44,0.83306021]
[1688201146496,7.5641857,18.443,18.44,0.83306021]
[1688201147595,7.5641857,18.443,18.44,0.40521059]
[1688201150993,107.86,18.442,18.44,0.40521059]
[1688201152101,108.612374,18.444,18.44,0.40521059]
[1688201152302,7.56425722,18.443,18.44,0.40521059]
[1688201153306,108.612374,18.444,18.44,0.40521059]
[1688201153508,0.832374,18.444,18.44,0.40521059]
[1688201168818,0.832374,18.444,18.443,34.14304351]
[1688201169408,107.86,18.451,18.443,34.14304351]
[1688201170113,107.86,18.454,18.445,34.14304351]
[1688201170619,0.46581219,18.451,18.448,0.81148119]
[1688201172719,25.18531424,18.47,18.448,0.81148119]
[1688201172720,106.8,18.465,18.45,141.15304351]
[1688201172912,7.57063666,18.464,18.454,107.86]
[1688201173112,273.71695649,18.468,18.457,107.86]
[1688201173318,7.57026453,18.467,18.457,107.86]
[1688201173714,7.57026453,18.467,18.46,0.88840197]
[1688201179512,107.86,18.465,18.454,107.68]
[1688201179712,7.57026453,18.464,18.455,34.14304351]
[1688201180724,0.76717147,18.461,18.458,0.86360667]
[1688201180919,26.47581631,18.469,18.46,107.68]
[1688201181125,7.56846826,18.468,18.46,107.68]
[1688201181424,7.56846826,18.468,18.466,34.14304351]
[1688201181629,7.56846826,18.467,18.466,34.14304351]
[1688201182127,7.56846826,18.467,18.465,0.86048593]
[1688201182322,7.56846826,18.466,18.465,35.00352944]
[1688201182529,7.56846826,18.466,18.465,33.82657375]
[1688201182723,0.11873562,18.468,18.465,33.82657375]
[1688201183625,0.11873562,18.468,18.466,33.82657375]
[1688201183820,0.11873562,18.468,18.465,0.76752515]
[1688201184423,0.11873562,18.468,18.466,33.82657375]
[1688201187027,0.11873562,18.468,18.465,0.76752515]
[1688201187328,0.11873562,18.468,18.466,33.82657375]
[1688201192231,0.11873562,18.468,18.465,0.76752515]
[1688201192738,0.11873562,18.468,18.466,33.82657375]
[1688201198333,0.11873562,18.468,18.465,0.76752515]
[1688201198529,0.11873562,18.468,18.466,33.82657375]
[1688201206335,98.07,18.467,18.459,97.67]
[1688201206539,105.6402931,18.466,18.459,97.67]
[1688201206738,7.5702931,18.465,18.459,97.67]
[1688201207432,0.80546938,18.464,18.46,0.81312607]
[1688201210147,0.80546938,18.464,18.462,98.07]
[1688201211941,0.80546938,18.464,18.46,98.48312607]
[1688201223561,0.80546938,18.464,18.463,98.07]
[1688201229865,97.3,18.47,18.463,131.89657375]
[1688201230865,0.79224417,18.468,18.465,0.75192052]
[1688201231670,97.3,18.466,18.46,98.07]
[1688201231871,98.07,18.464,18.458,97.67]
[1688201232570,0.83135909,18.463,18.459,0.73297122]
[1688201235074,98.07,18.462,18.459,0.73297122]
[1688201240076,0.83135909,18.463,18.459,98.40297122]
[1688201240275,98.07,18.471,18.462,131.89657375]
[1688201240476,98.07,18.471,18.465,98.07]
[1688201241178,0.75023547,18.47,18.467,97.67]
[1688201241379,98.07,18.473,18.467,97.67]
[1688201241881,154.5916,18.476,18.47,97.67]
[1688201242178,7.56632276,18.475,18.47,97.67]
[1688201242383,0.11072383,18.474,18.471,0.7890954]
[1688201245079,98.18072383,18.474,18.471,0.7890954]
[1688201246289,98.07,18.472,18.467,33.82657375]
[1688201247387,98.07,18.472,18.468,0.73397227]
[1688201257298,125.4817267,18.472,18.468,0.73397227]
[1688201257692,98.07,18.472,18.468,0.73397227]
[1688201261896,97.3,18.473,18.468,0.73397227]
[1688201264193,98.07,18.471,18.468,0.73397227]
[1688201270100,97.41072383,18.474,18.468,98.80397227]
[1688201278207,97.3,18.471,18.468,0.73397227]
[1688201284412,97.41072383,18.474,18.468,98.80397227]
[1688201286304,97.41072383,18.474,18.468,0.73397227]
[1688201286508,97.3,18.471,18.468,0.73397227]
[1688201295522,98.07,18.469,18.468,0.73397227]
[1688201297817,0.11072383,18.474,18.468,0.73397227]
[1688201298014,97.3,18.471,18.468,0.73397227]
[1688201304918,97.3,18.471,18.468,34.56054602]
[1688201306318,97.3,18.469,18.462,98.07]
[1688201306519,190.05769255,18.476,18.459,97.67]
[1688201306520,98.07,18.465,18.459,97.67]
[1688201306721,97.3,18.462,18.458,33.82657375]
[1688201306924,97.3,18.462,18.458,32.98052573]
[1688201307526,98.03692695,18.462,18.458,33.85932484]
[1688201308029,98.07,18.459,18.458,33.85932484]
[1688201309332,97.3,18.459,18.458,0.87879911]
[1688201309525,97.3,18.459,18.448,32.98052573]
[1688201309724,98.07,18.453,18.448,13.98052573]
[1688201310537,98.07,18.45,18.449,0.81115326]
[1688201314327,192.97697193,18.45,18.449,0.81115326]
[1688201315235,98.07,18.45,18.449,0.81115326]
[1688201318229,193.00122184,18.45,18.438,13.98052573]
[1688201318427,97.3,18.443,18.438,13.98052573]
[1688201319239,0.81836167,18.442,18.439,0.7787527]
[1688201320431,97.3,18.44,18.439,0.7787527]
[1688201320939,0.81836167,18.442,18.439,0.7787527]
[1688201320940,108.72836167,18.442,18.439,0.7787527]
[1688201323240,0.81836167,18.442,18.439,0.7787527]
[1688201324535,0.81836167,18.442,18.441,13.98052573]
[1688201324838,107.74,18.448,18.441,13.98052573]
[1688201325338,135.05354338,18.448,18.441,13.98052573]
[1688201325744,0.85038047,18.446,18.441,13.98052573]
[1688201330543,0.85038047,18.446,18.439,0.7787527]
[1688201330946,0.85038047,18.446,18.445,13.98052573]
[1688201331439,0.85038047,18.446,18.444,0.75449533]
[1688201331644,0.85038047,18.446,18.438,13.98052573]
[1688201332747,0.85038047,18.446,18.44,0.76122766]
[1688201335243,108.76038047,18.446,18.44,0.76122766]
[1688201336945,108.76038047,18.446,18.44,0.69736132]
[1688201339955,0.85038047,18.446,18.44,0.69736132]
[1688201340161,107.74,18.441,18.44,0.69736132]
[1688201346157,107.74,18.441,18.429,107.26]
[1688201346352,107.82,18.431,18.428,13.98052573]
[1688201347251,108.66866031,18.431,18.428,14.8540632]
[1688201347452,108.66866031,18.431,18.428,0.87353747]
[1688201347651,108.66866031,18.431,18.428,14.8540632]
[1688201350650,107.38,18.429,18.428,6.7468632]
[1688201350952,107.38,18.429,18.418,107.26]
[1688201351161,107.82,18.424,18.418,6.7468632]
[1688201351556,107.91,18.421,18.418,6.7468632]
[1688201351758,107.91,18.421,18.419,0.52637701]
[1688201351963,107.38,18.42,18.419,0.52637701]
[1688201352355,107.91,18.422,18.419,0.52637701]
[1688201352552,0.88592499,18.423,18.419,0.52637701]
[1688201354760,0.88592499,18.423,18.422,6.7468632]
[1688201355958,0.88592499,18.423,18.419,0.52637701]
[1688201356166,107.38,18.435,18.429,6.7468632]
[1688201357067,107.38,18.435,18.43,0.75828803]
[1688201357068,0.83947326,18.434,18.43,0.75828803]
[1688201362066,107.74,18.433,18.43,0.75828803]
[1688201364470,107.38,18.431,18.429,6.7468632]
[1688201367161,107.38,18.431,18.428,0.6526885]
[1688201367464,107.38,18.429,18.428,7.3995517]
[1688201370659,107.38,18.429,18.428,5.17e-05]
[1688201376678,108.57947326,18.434,18.428,5.17e-05]
[1688201382078,0.83947326,18.434,18.428,5.17e-05]
[1688201382780,0.83947326,18.434,18.426,200.0]
[1688201383083,107.91,18.444,18.433,106.94]
[1688201383270,94.98368389,18.443,18.433,106.94]
[1688201383977,0.88325994,18.44,18.436,0.83487033]
[1688201394889,107.38,18.447,18.437,107.91]
[1688201395084,94.98071216,18.446,18.437,107.91]
[1688201395884,0.87592633,18.443,18.44,0.83041882]
[1688201396080,94.98071216,18.442,18.44,0.83041882]
[1688201409495,96.51,18.45,18.441,97.08]
[1688201409695,96.51,18.45,18.444,97.08]
[1688201410198,236.34947874,18.47,18.449,97.08]
[1688201410199,145.76149604,18.461,18.449,97.08]
[1688201410394,97.08,18.459,18.453,97.08]
[1688201410597,0.74728758,18.458,18.454,0.876239]
[1688201411894,109.07,18.463,18.454,0.876239]
[1688201412097,109.07,18.463,18.452,108.91]
[1688201412893,0.88161905,18.459,18.456,0.76276937]
[1688201428114,28.26606276,18.459,18.456,0.76276937]
[1688201428309,0.88161905,18.459,18.456,0.76276937]
[1688201466455,0.88161905,18.459,18.449,109.07]
[1688201466642,108.43,18.46,18.449,109.07]
[1688201467443,0.87348593,18.456,18.453,0.78192808]
[1688201471363,109.08348593,18.456,18.453,0.78192808]
[1688201471554,109.08348593,18.456,18.447,257.9405]
[1688201471863,109.07,18.45,18.439,109.07]
[1688201472561,0.8177728,18.446,18.443,0.85739271]
[1688201478158,97.02,18.444,18.433,96.51]
[1688201478364,97.02,18.44,18.433,96.51]
[1688201478564,90.13035308,18.439,18.433,96.51]
[1688201479368,0.85263817,18.438,18.434,0.79580846]
[1688201481966,97.37263817,18.438,18.434,0.79580846]
[1688201485574,97.02,18.435,18.429,96.13]
[1688201486675,0.85025417,18.434,18.43,0.14775411]
[1688201491873,96.52,18.433,18.43,0.14775411]
[1688201494185,97.02,18.432,18.427,200.0]
[1688201495983,0.85025417,18.434,18.429,96.51]
[1688201499482,0.85025417,18.434,18.432,96.13]
[1688201501870,0.85025417,18.434,18.433,96.13]
[1688201502881,97.02,18.442,18.433,96.51]
[1688201503184,97.02,18.442,18.436,96.51]
[1688201504080,0.73485708,18.441,18.437,0.84841979]
[1688201509888,96.52,18.448,18.44,96.13]
[1688201510393,57.9962,18.457,18.444,96.51]
[1688201510693,97.02,18.45,18.444,96.51]
[1688201511088,0.73451325,18.449,18.445,0.86463917]
[1688201511895,97.75451325,18.449,18.445,0.86463917]
[1688201512897,0.73451325,18.449,18.446,96.51]
[1688201513089,97.02,18.455,18.448,96.13]
[1688201514298,0.88351234,18.453,18.45,0.83940238]
[1688201520300,0.88351234,18.453,18.451,96.51]
[1688201525015,0.88351234,18.453,18.45,0.83940238]
[1688201551234,0.88351234,18.453,18.446,200.0]
[1688201552135,0.88351234,18.453,18.448,0.88343072]
[1688201567344,0.88351234,18.453,18.449,107.71]
[1688201570449,55.0372,18.459,18.449,107.71]
[1688201570646,90.09231638,18.458,18.449,107.71]
[1688201571350,0.74749258,18.455,18.452,0.82040852]
[1688201573753,90.09252726,18.454,18.452,0.82040852]
[1688201574949,108.71,18.465,18.456,200.0]
[1688201575246,90.06735915,18.464,18.456,200.0]
[1688201576151,0.84592534,18.462,18.458,0.80854516]
[1688201576452,90.06735915,18.461,18.458,0.80854516]
[1688201577555,0.84592534,18.462,18.458,0.80854516]
[1688201577756,90.06672482,18.461,18.458,0.80854516]
[1688201579959,90.06672482,18.461,18.452,107.38]
[1688201580457,106.75,18.459,18.448,107.71]
[1688201580658,90.06672482,18.458,18.448,107.71]
[1688201580847,0.74764273,18.455,18.451,0.74209148]
[1688201581255,107.08,18.453,18.446,200.0]
[1688201582167,107.08,18.453,18.448,0.80987192]
[1688201590859,96.23,18.45,18.448,0.80987192]
[1688201599568,186.33324377,18.449,18.442,96.49]
[1688201599772,96.23,18.449,18.442,96.49]
[1688201600575,0.77957005,18.447,18.444,0.73960337]
[1688201601875,96.23,18.446,18.444,0.73960337]
[1688201610091,96.98,18.445,18.437,96.49]
[1688201610296,26.73938953,18.45,18.436,200.0]
[1688201610590,96.98,18.441,18.436,200.0]
[1688201611189,0.78536287,18.44,18.436,200.0]
[1688201611890,97.76536287,18.44,18.436,200.0]
[1688201613890,0.78536287,18.44,18.436,96.98]
[1688201614086,0.78536287,18.44,18.436,296.98]
[1688201614889,0.78536287,18.44,18.436,96.98]
[1688201617692,0.78536287,18.44,18.436,296.98]
[1688201619298,0.78536287,18.44,18.436,96.98]
[1688201619596,0.78536287,18.44,18.436,296.98]
[1688201621996,0.78536287,18.44,18.438,96.98]
[1688201622799,96.98,18.444,18.438,96.98]
[1688201623898,0.73460714,18.443,18.439,0.79375428]
[1688201631007,96.23,18.45,18.442,96.98]
[1688201631205,96.23,18.45,18.444,96.98]
[1688201631608,96.23,18.449,18.443,96.49]
[1688201631909,96.98,18.45,18.444,96.98]
[1688201632105,0.76808693,18.448,18.444,97.84944447]
[1688201644014,96.99808693,18.448,18.444,0.86944447]
[1688201656319,90.12117315,18.447,18.444,0.86944447]
[1688201656520,96.99808693,18.448,18.444,0.86944447]
[1688201657324,90.12227876,18.447,18.444,0.86944447]
[1688201661829,96.23,18.446,18.444,0.86944447]
[1688201665835,90.12080769,18.445,18.444,0.86944447]
[1688201666531,84.85689935,18.445,18.444,97.84944447]
[1688201666735,0.76808693,18.448,18.444,97.84944447]
[1688201667434,0.76808693,18.448,18.446,200.0]
[1688201667635,0.76808693,18.448,18.447,96.49]
[1688201670038,25.18531424,18.482,18.447,96.49]
[1688201670039,96.23,18.462,18.447,96.49]
[1688201670246,96.23,18.462,18.456,296.98]
[1688201671043,0.73640703,18.461,18.457,0.75588543]
[1688201671943,0.73640703,18.461,18.458,96.49]
[1688201674347,0.73640703,18.461,18.46,96.98]
[1688201679748,200.53732754,18.49,18.46,96.98]
[1688201679749,96.23,18.47,18.465,200.0]
[1688201679952,96.98,18.473,18.467,96.98]
[1688201680848,0.8152414,18.472,18.468,0.79682977]
[1688201681040,0.88485046,18.472,18.468,0.81050236]
[1688201687555,108.87,18.47,18.468,0.81050236]
[1688201687755,108.87,18.469,18.46,27.49318191]
[1688201687957,108.87,18.469,18.457,162.97]
[1688201688858,0.76947996,18.465,18.461,0.80123754]
[1688201690554,108.1,18.471,18.461,0.80123754]
[1688201691266,89.76580529,18.47,18.461,0.80123754]
[1688201691463,108.1,18.471,18.461,0.80123754]
[1688201691666,0.88402319,18.467,18.461,0.80123754]
[1688201693856,0.88402319,18.467,18.465,200.0]
[1688201694961,0.88402319,18.467,18.462,108.28]
[1688201698067,0.88402319,18.467,18.466,107.82]
[1688201714975,0.88402319,18.467,18.465,200.0]
[1688201718974,0.88402319,18.467,18.461,27.20794928]